[Event "8th Svetozar Gligoric Cup 2022"]
[Site "Paracin"]
[Date "2022.06.02"]
[Round "3.8"]
[White "Toth, Aleksandar"]
[Black "Stefanovic, Dragan D"]
[Result "1-0"]
[WhiteElo "2335"]
[BlackElo "1567"]
[Annotator "TA"]
[PlyCount "19"]
[EventDate "2022.05.31"]
[EventType "team-tourn"]
[EventCountry "SRB"]
[SourceTitle "playchess.com"]
[Source "ChessBase"]
[SourceQuality "1"]
[TimeControl "40/5400+30:900+30"]

{[%evp 9,19,66,72,66,279,274,268,244,290,275,310,294]} 1. Nf3 {[%emt 0:01:46]} d5 {[%emt 0:00:22]} 2. g3 {[%emt 0:00:28]} Nf6 {[%emt 0:00:16]} 3. Bg2 {[%emt 0:00:41]} Bg4 {[%emt 0:00:18]} 4. Ne5 {[%emt 0:05:19]} c6 {[%emt 0:10:05]} 5. Nxg4 {[%emt 0:03:33]} Nxg4 {[%emt 0:04:07]} 6. e4 {[%emt 0:03:31] [#] A07: Réti Opening: New York and Capablanca Systems.} Nxf2 $146 {[%emt 0:14:35] [#]} ({Predecessor:} 6... Nf6 7. e5 Nfd7 8. d4 e6 9. O-O c5 10. c4 cxd4 11. cxd5 exd5 12. Bxd5 Nc6 13. Bxc6 bxc6 14. Qxd4 {1-0 (25) Damaso,R (2425)-Conflitti,A (1800) Figueira da Foz 2014}) 7. Kxf2 $18 {[%emt 0:00:25]} dxe4 {[%emt 0:02:16]} 8. Qg4 {[%emt 0:02:29]} ({Don't do} 8. Bxe4 $6 Qd4+ 9. Kf3 f5 $18) 8... Qd4+ {[%emt 0:03:42]} 9. Ke2 {[%emt 0:00:31] Qc8+ is the strong threat.} e6 {[%emt 0:01:01]} 10. Qxe4 {[%emt 0:00:14] Black got outplayed after the opening.  Weighted Error Value: White=0.08 (flawless) /Black=0.99} 1-0

[Event "8th Svetozar Gligoric Cup 2022"]
[Site "Paracin"]
[Date "2022.06.02"]
[Round "3.9"]
[White "Jovanovic, Dusan D"]
[Black "Maksimovic, Bojan"]
[Result "0-1"]
[ECO "E93"]
[WhiteElo "2391"]
[BlackElo "2445"]
[Annotator "TA"]
[PlyCount "70"]
[EventDate "2022.05.31"]
[EventType "team-tourn"]
[EventCountry "SRB"]
[SourceTitle "playchess.com"]
[Source "ChessBase"]
[SourceQuality "1"]
[TimeControl "40/5400+30:900+30"]

{[%evp 23,70,16,29,0,38,26,45,0,0,0,0,0,0,0,0,0,0,-38,-41,-48,-50,-56,-37,-62,-47,-145,-148,-160,-138,-138,0,0,0,-26,-26,-44,-66,-86,-87,-88,-80,-230,-256,-842,-843,-29993,-29994,-29995,-29996]} 1. Nf3 {[%emt 0:00:05]} Nf6 {[%emt 0:00:09]} 2. c4 {[%emt 0:00:41]} g6 {[%emt 0:00:11]} 3. Nc3 {[%emt 0:00:07]} Bg7 {[%emt 0:00:06]} 4. e4 {[%emt 0:00:12]} d6 {[%emt 0:00:06]} 5. d4 {[%emt 0:00:05]} O-O {[%emt 0:00:07]} 6. Be2 {[%emt 0:00:17]} Nbd7 {[%emt 0:01:37]} 7. O-O {[%emt 0:01:09]} e5 {[%emt 0:00:10]} 8. Bg5 {[%emt 0:00:54]} h6 {[%emt 0:01:21]} 9. Bh4 {[%emt 0:00:16]} g5 {[%emt 0:04:43]} 10. Bg3 {[%emt 0:00:25]} Nh5 {[%emt 0:00:30]} 11. d5 {[%emt 0:01:55]} Nf4 {[%emt 0:03:00]} 12. Nd2 {[%emt 0:05:07]} Nf6 {[%emt 0:24:08]} 13. h3 {[%emt 0:11:24] [#] E93: King's Indian: Classical: Petrosian System with 7...Nbd7.} c5 $146 {[%emt 0:04:44]} ({Predecessor:} 13... Nxe2+ 14. Qxe2 g4 15. hxg4 Bxg4 16. Qe3 Nh5 17. c5 Bf6 18. cxd6 cxd6 19. Nf3 Kh7 20. Nh2 Bg5 {0-1 (59) Kaunas,K (2350)-Borocz,I (2335) Budapest 1993}) 14. a3 {[%emt 0:03:35]} b6 {[%emt 0:02:44]} 15. b4 {[%emt 0:01:54] White is slightly better.} h5 {[%emt 0:00:11]} 16. bxc5 {[%emt 0:09:47]} bxc5 {[%emt 0:00:29]} 17. Rb1 {[%emt 0:00:15]} Nxe2+ {[%emt 0:02:39]} 18. Qxe2 {[%emt 0:01:10]} h4 {[%emt 0:00:13]} 19. Bh2 {[%emt 0:00:05]} g4 {[%emt 0:00:14]} 20. hxg4 {[%emt 0:01:24]} Nxg4 {[%emt 0:00:17]} 21. Rb3 {[%emt 0:00:18]} Bh6 {[%emt 0:03:05]} 22. Rfb1 {[%emt 0:04:07]} Kh7 {[%emt 0:02:57]} 23. Nf1 {[%emt 0:04:10]} Rg8 {[%emt 0:05:57]} 24. Qf3 {[%emt 0:03:04]} (24. f3 $15 Nxh2 25. Nxh2) 24... Qg5 $1 $17 {[%emt 0:02:53]} 25. Rb8 {[%emt 0:18:40]} Rxb8 {[%emt 0:02:10]} 26. Rxb8 {[%emt 0:00:10]} Qg6 $40 {[%emt 0:16:25][%mdl 128] White needs to defend precisely.} (26... Qc1 $1 $17 {[%cal Rc1f1]} 27. Rb1 (27. Qxf7+ $2 Rg7 $19) 27... Qxa3) 27. Nb5 $1 $11 {[%emt 0:04:09]} h3 {[%emt 0:07:35]} 28. Bg3 {[%emt 0:13:39]} (28. Qxh3 Nxf2 $1 {[%mdl 512]} 29. Qg3 Nxe4 30. Qxg6+ fxg6 $17) (28. Ng3 $5 {[%cal Rb5d6]}) 28... hxg2 {[%emt 0:01:30]} 29. Kxg2 {[%emt 0:01:51][%cal Ob5d6]} Nf6 {[%emt 0:04:23] Threatens to win with ...Bg4.} 30. Nxd6 {[%emt 0:01:29]} Bg4 {[%emt 0:02:38][%mdl 64] Discovered Attack. Dancing on a razor blade.} 31. Qb3 {[%emt 0:00:17]} Rxb8 {[%emt 0:01:51]} 32. Qxb8 {[%emt 0:00:07] [#] This move loses the game for White.} Qh5 $1 {[%emt 0:00:54] ( -> ...Bf3+)} 33. Qb3 {[%emt 0:08:46] Against Bf3+} (33. Kg1 Bh3 34. Nxf7 (34. Qxa7 $2 Qd1 $19) 34... Qxf7 35. Qxe5) 33... Bh3+ $19 {[%emt 0:00:39] A strong pair of Bishops.} ({Avoid the trap} 33... Bf8 $2 34. Nxf7 Bh3+ 35. Kg1 Qxf7 36. Bxe5 Qg6+ 37. Ng3 $19) 34. Kg1 {[%emt 0:00:05] [#]} Qe2 $1 {[%emt 0:00:31][%csl LRe4,LRf1]} ({Not} 34... Bxf1 35. Kxf1 Bf8 36. Nb5 $11) 35. Ne3 {[%emt 0:00:22]} Bxe3 {[%emt 0:00:11] Weighted Error Value: White=0.62/Black=0.08 (flawless)} 0-1

[Event "8th Svetozar Gligoric Cup 2022"]
[Site "Paracin"]
[Date "2022.06.02"]
[Round "3.10"]
[White "Tadic, Stefan"]
[Black "Dudukovic, Nikola"]
[Result "1-0"]
[ECO "C44"]
[WhiteElo "2358"]
[BlackElo "2346"]
[Annotator "TA"]
[PlyCount "101"]
[EventDate "2022.05.31"]
[EventType "team-tourn"]
[EventCountry "SRB"]
[SourceTitle "playchess.com"]
[Source "ChessBase"]
[SourceQuality "1"]
[TimeControl "40/5400+30:900+30"]

{[%evp 13,101,0,0,0,0,0,0,0,7,-26,-21,-25,-16,-58,-43,-96,-95,-92,-100,-94,-72,-75,-93,-83,-73,-79,-86,-88,-93,-98,-112,-104,-50,-93,-74,-150,-67,-87,-57,-50,-62,-42,-14,-111,-83,-106,-82,-238,-88,-51,-54,-191,-106,-89,0,-56,0,0,0,0,0,0,0,0,52,53,411,112,112,112,156,112,112,112,1701,1633,1300,1014,9963,10991,2255,2112,29947,6582,29964,29958,29967,29968,29961,6279]} 1. e4 {[%emt 0:00:14]} e5 {[%emt 0:00:06]} 2. Nf3 {[%emt 0:00:38]} Nc6 {[%emt 0:00:06]} 3. g3 {[%emt 0:00:14]} Nf6 {[%emt 0:01:37][%cal Bg8f6,Bf6d5,Bd5e7,Be7f5][%mdl 32]} 4. d3 {[%emt 0:00:07]} d5 {[%emt 0:00:27]} 5. exd5 {[%emt 0:00:06]} Nxd5 {[%emt 0:00:05]} 6. Bg2 {[%emt 0:00:07]} g6 {[%emt 0:00:43] 6...Bc5 is the modern continuation.} 7. O-O {[%emt 0:00:19]} Bg7 {[%emt 0:00:05]} 8. Nc3 {[%emt 0:01:41] C44: Ponziani Opening and Scotch Gambit.} Nde7 {[%emt 0:00:33]} 9. a4 {[%emt 0:06:43] [#]} a5 $146 {[%emt 0:03:38]} ({Predecessor:} 9... O-O 10. a5 h6 11. a6 b6 12. Nb5 Bg4 13. h3 Be6 14. Re1 Qd7 15. Kh2 Rad8 {½-½ (60) Topakian,R (2409)-Brkic,A (2600) Austria 2019}) 10. Nb5 {[%emt 0:17:31][%cal Od3d4] The position is equal.} O-O {[%emt 0:01:51]} 11. Be3 {[%emt 0:04:36]} Nf5 {[%emt 0:11:11]} 12. Bc5 {[%emt 0:07:53]} Re8 {[%emt 0:00:50]} 13. c3 {[%emt 0:00:06]} Nb8 {[%emt 0:18:05][%cal Bc6b8,Bb8a6,Ba6c5][%mdl 32]} 14. Qc2 {[%emt 0:14:10]} (14. Re1 $15) 14... Na6 $17 {[%emt 0:19:27]} 15. Be3 {[%emt 0:01:55]} Nxe3 {[%emt 0:03:30]} 16. fxe3 {[%emt 0:00:02]} c6 {[%emt 0:01:04]} 17. Na3 {[%emt 0:00:04]} Be6 {[%emt 0:09:02]} 18. Nd2 {[%emt 0:02:09]} Nc5 {[%emt 0:08:13]} 19. d4 {[%emt 0:01:26]} Nd7 {[%emt 0:00:33]} 20. Nac4 {[%emt 0:02:06]} Qc7 {[%emt 0:01:01]} 21. Rae1 {[%emt 0:04:17]} Rab8 {[%emt 0:05:08]} 22. Kh1 {[%emt 0:06:38]} b5 {[%emt 0:02:22]} (22... Re7 $17) 23. Na3 {[%emt 0:01:47]} Nf6 {[%emt 0:01:07]} 24. e4 {[%emt 0:04:56]} (24. Nb3 $142) 24... b4 {[%emt 0:04:04]} (24... bxa4 $17 {Strongly threatening ...exd4.} 25. Ndc4 exd4 26. cxd4 Rb4) 25. Nac4 $15 {[%emt 0:01:03]} bxc3 {[%emt 0:00:35]} 26. bxc3 {[%emt 0:00:18]} exd4 {[%emt 0:00:47]} 27. cxd4 {[%emt 0:00:07]} Rb4 {[%emt 0:00:12] With the idea ...Rd8.} (27... Red8 $5 {[%cal Rd8d4]} 28. e5 Ne8 $15) 28. Rb1 {[%emt 0:11:27]} (28. e5 $1 $11 {keeps the balance.} Nd5 29. Ne4) 28... Reb8 $17 {[%emt 0:01:43]} 29. Rxb4 {[%emt 0:00:07]} Rxb4 {[%emt 0:00:12]} 30. Rb1 $2 {[%emt 0:00:05]} (30. e5 $17 Nd7 31. Qc3) 30... Rxb1+ {[%emt 0:01:29]} (30... Qa7 $19 31. Ne5 Rxb1+ 32. Nxb1 Qxd4 33. Nxc6 Qa1 34. Ne7+ Kh8) 31. Qxb1 {[%emt 0:00:08]} Ng4 {[%emt 0:00:14]} 32. Qg1 {[%emt 0:05:48] [#] Prevents Nf2+.} (32. e5 $15) 32... Qd8 {[%emt 0:03:03]} (32... c5 $1 $19 33. dxc5 Qd7) 33. e5 {[%emt 0:00:20]} Bd5 {[%emt 0:00:04]} (33... Bh6 $17 {[%cal Oc6c5] Hoping for ...c5!} 34. h3 Bxd2 35. Nxd2 Nxe5) 34. Nd6 {[%emt 0:01:52]} ({White should try} 34. h3 $11 Nh6 35. Nd6) 34... Qb6 {[%emt 0:02:27]} (34... Bf8 $1 $15 35. N2c4 Qd7) 35. h3 {[%emt 0:00:58]} Qb2 {[%emt 0:01:15]} 36. Bxd5 {[%emt 0:02:53]} cxd5 {[%emt 0:00:16]} 37. hxg4 {[%emt 0:01:53]} Qxd2 $11 {[%emt 0:00:07][%mdl 4096] Endgame KQB-KQN} 38. Qf1 $36 {[%emt 0:00:04][%mdl 2048] White has good play.} Qh6+ {[%emt 0:01:33]} (38... f6 $11) 39. Kg2 $14 {[%emt 0:00:02]} f6 {[%emt 0:00:36][%mdl 8192] [#]} (39... Qd2+ $1 $14 40. Qf2 Bh6) 40. Qf4 $2 {[%emt 0:00:00]} (40. Qe1 $1 $18 {[%cal Re1a5]} Bf8 41. Qxa5 Bxd6 42. exd6) 40... Qxf4 $16 {[%emt 0:00:00]} 41. gxf4 {[%emt 0:02:36]} fxe5 {[%emt 0:04:53]} 42. fxe5 {[%emt 0:02:17] KB-KN} Bh6 {[%emt 0:09:27]} 43. Kf3 {[%emt 0:00:02] Inhibits Be3. White is more active.} Bd2 $2 {[%emt 0:00:34][%mdl 8192]} (43... Bc1 $16) 44. Ne8 $18 {[%emt 0:00:24]} Kf7 {[%emt 0:00:21]} 45. Nc7 {[%emt 0:00:12]} h5 {[%emt 0:02:23]} 46. gxh5 {[%emt 0:00:05]} gxh5 {[%emt 0:00:03]} 47. Nxd5 {[%emt 0:00:03] Threatening mate with Nf4.} h4 {[%emt 0:00:59]} 48. Nf4 {[%emt 0:00:09] White threatens d5 and mate.} Bc1 {[%emt 0:00:54]} 49. d5 {[%emt 0:00:08] White mates.} Ke8 {[%emt 0:00:27]} 50. Kg4 {[%emt 0:00:42]} Kf7 {[%emt 0:00:33]} 51. Nd3 {[%emt 0:00:04] What a bad dream for Black.  Weighted Error Value: White=0.47/Black=0.53} (51. d6 $142 Ba3 52. d7 Ke7 53. e6 Kd8 54. Kxh4 Be7+ 55. Kg4 Bc5 56. Kf5) 1-0

[Event "8th Svetozar Gligoric Cup 2022"]
[Site "Paracin"]
[Date "2022.06.02"]
[Round "3.11"]
[White "Ciric, Pavle"]
[Black "Ivanovic, Marko"]
[Result "0-1"]
[ECO "C77"]
[WhiteElo "2177"]
[BlackElo "2294"]
[Annotator "TA"]
[PlyCount "124"]
[EventDate "2022.05.31"]
[EventType "team-tourn"]
[EventCountry "SRB"]
[SourceTitle "playchess.com"]
[Source "ChessBase"]
[SourceQuality "1"]
[TimeControl "40/5400+30:900+30"]

{[%evp 11,124,12,6,7,10,0,0,0,0,-16,10,0,0,-40,-20,-51,-36,-39,-38,-28,-26,-73,0,-14,0,-7,84,79,85,66,101,43,70,66,114,110,86,29,32,6,20,-17,9,0,0,0,0,0,0,0,53,58,398,40,67,0,0,0,27,0,0,-54,-43,-158,-116,-155,-142,-149,-119,-453,-436,-447,-458,-412,-407,-630,-610,-493,-147,-442,-262,-267,-270,-262,-269,-260,-258,-226,-230,-274,-274,-327,-352,-426,-426,-481,-548,-577,-547,-552,-475,-613,-597,-608,-597,-575,-535,-1227,-1147,-1168,-1034,-1818,-445,-29976,-29976]} 1. e4 {[%emt 0:00:03]} e5 {[%emt 0:04:22]} 2. Nf3 {[%emt 0:00:06]} Nc6 {[%emt 0:00:04]} 3. Bb5 {[%emt 0:00:05]} a6 {[%emt 0:00:04]} 4. Ba4 {[%emt 0:00:54]} Nf6 {[%emt 0:00:05]} 5. Bxc6 {[%emt 0:06:53]} dxc6 {[%emt 0:00:06]} 6. d3 {[%emt 0:00:03]} Bd6 {[%emt 0:03:32]} 7. O-O {[%emt 0:01:00] C77: Ruy Lopez: 3...a6 4 Ba4 Nf6, unusual lines.} Qe7 {[%emt 0:00:23]} 8. Nbd2 {[%emt 0:00:40]} Be6 {[%emt 0:00:24]} 9. b3 {[%emt 0:07:23] The position is equal.} Nd7 {[%emt 0:00:40]} 10. Nc4 {[%emt 0:03:16]} f6 {[%emt 0:00:07] [#]} 11. Qe2 $146 {[%emt 0:08:52]} ({Predecessor:} 11. Bd2 O-O 12. Nh4 g6 13. g3 b5 14. Ne3 f5 15. exf5 gxf5 16. Qh5 Qf7 17. Qxf7+ Rxf7 {1-0 (57) Nakamura,H (2736)-Abdusattorov,N (2627) Chess.com INT 2021}) 11... O-O-O {[%emt 0:21:06]} 12. Ne3 {[%emt 0:07:58]} g6 {[%emt 0:01:20]} 13. Bb2 {[%emt 0:01:34]} h5 {[%emt 0:02:56]} 14. a3 {[%emt 0:08:41]} g5 {[%emt 0:04:45]} 15. b4 {[%emt 0:01:45]} Qh7 {[%emt 0:38:30]} 16. c4 {[%emt 0:13:16]} (16. Rfb1 $11) 16... c5 {[%emt 0:07:24]} (16... Nf8 $17) 17. Bc3 $11 {[%emt 0:08:33]} Rdg8 {[%emt 0:10:38]} 18. b5 {[%emt 0:00:34]} Nb8 {[%emt 0:00:07]} (18... axb5 $11 {remains equal.} 19. cxb5 h4) 19. bxa6 $16 {[%emt 0:02:32]} Nxa6 {[%emt 0:00:04]} 20. Rab1 {[%emt 0:00:46]} h4 {[%emt 0:00:05]} 21. Nd2 {[%emt 0:04:11]} ({Better is} 21. Qb2 $1 $16 {[%cal Rb2b7]} c6 22. h3) 21... g4 {[%emt 0:00:12]} 22. f3 $1 {[%emt 0:02:49]} g3 {[%emt 0:03:20]} (22... gxf3 $14 23. Rxf3 (23. Qxf3 Rg6 $14) 23... Rg6) 23. h3 {[%emt 0:01:04]} Qd7 {[%emt 0:00:05]} 24. Ng4 {[%emt 0:02:12]} (24. Rb3 $1 $16) 24... Be7 {[%emt 0:00:06]} 25. Rfd1 {[%emt 0:03:31]} Nb8 {[%emt 0:00:15]} 26. Nb3 {[%emt 0:01:09]} Nc6 {[%emt 0:02:08]} 27. a4 {[%emt 0:04:20]} Nd4 {[%emt 0:01:12]} 28. Bxd4 {[%emt 0:00:42]} cxd4 {[%emt 0:00:00]} 29. a5 {[%emt 0:00:47][%cal Oa5a6]} Qc6 {[%emt 0:00:00]} 30. Rb2 {[%emt 0:05:02][%cal Oa5a6]} Qa6 {[%emt 0:00:43]} (30... Kb8 $11) 31. Rdb1 $14 {[%emt 0:00:09]} Kd7 $2 {[%emt 0:00:34][%mdl 8192] [#]} (31... Bd7 $14) 32. Nd2 $2 {[%emt 0:01:00]} (32. Nxf6+ $1 $18 {[%mdl 512]} Kc8 (32... Kd8 33. Nxg8) 33. Nxg8 Rxg8 34. f4) 32... Rb8 {[%emt 0:00:07]} 33. Rb5 {[%emt 0:00:13]} (33. Kh1 $14) 33... Kc8 $11 {[%emt 0:00:14]} 34. Qd1 {[%emt 0:01:19][%cal Of3f4]} Bd7 {[%emt 0:00:18]} 35. Qb3 {[%emt 0:01:52]} (35. f4 $5) 35... Bc6 {[%emt 0:01:21]} (35... Bxb5 $2 36. cxb5 Qd6 37. Nc4 $18) 36. Qa2 {[%emt 0:02:21]} Ra8 $1 $15 {[%emt 0:00:04]} (36... Bxb5 $2 37. cxb5 Qd6 38. Nc4 $18) 37. Kf1 {[%emt 0:00:53]} Bxb5 {[%emt 0:00:31]} 38. cxb5 {[%emt 0:00:10]} Qxa5 {[%emt 0:00:04]} 39. Qe6+ {[%emt 0:00:03]} Kb8 {[%emt 0:00:04]} 40. Rd1 {[%emt 0:00:00][%mdl 8192]} (40. Ke2 $17 {is tougher.} Qa3 41. Nxf6 Bxf6 42. Qxf6) 40... Bd8 $19 {[%emt 0:00:00]} 41. Nxf6 {[%emt 0:01:33]} Bxf6 {[%emt 0:01:38]} 42. Qxf6 {[%emt 0:00:02]} Re8 {[%emt 0:00:06]} 43. Qxh4 {[%emt 0:01:02]} (43. Ke2 $142 Qxb5 44. Rb1) 43... Qxb5 {[%emt 0:00:51]} 44. Ke2 {[%emt 0:03:04]} Qb2 $2 {[%emt 0:02:48]} (44... Ra3 $19 {is more deadly.} 45. Nc4 Ra2+ 46. Rd2 Ra1) 45. Qxg3 $2 {[%emt 0:02:13][%mdl 8192]} (45. Qh5 $17 Qb5 46. Qg6) 45... Qc2 {[%emt 0:00:04]} (45... Qa2 $142 46. Qe1 Ra3) 46. Qg6 {[%emt 0:01:14] [#] Prevents Rg8.} Rc8 {[%emt 0:01:43] And now ...Ra3 would win.} 47. Qe6 {[%emt 0:02:16]} Ra3 {[%emt 0:00:20][%cal Ba8a3,Ba3c3,Bc3c5,Bc5c2][%mdl 32]} 48. Qc4 {[%emt 0:00:04]} Rc3 {[%emt 0:01:43] The board is on fire.} 49. Qb5 {[%emt 0:00:28] Rb1 is the strong threat.} Rc5 {[%emt 0:01:31]} 50. Qb1 {[%emt 0:04:44]} Rh8 {[%emt 0:05:00]} 51. Qxc2 Rxc2 {[%emt 0:00:01][%mdl 4096] Endgame KRR-KRN} 52. Rh1 {[%emt 0:01:39]} b5 {[%emt 0:00:10][%cal Bb7b5,Bb5b4][%mdl 32]} 53. h4 {[%emt 0:00:02]} c5 {[%emt 0:00:09]} 54. Rb1 {[%emt 0:02:25]} b4 {[%emt 0:00:04]} 55. g3 {[%emt 0:01:55]} Kc7 {[%emt 0:00:42] Hoping for ...Ra8.} 56. Kd1 {[%emt 0:00:54]} Rc3 {[%emt 0:00:06]} 57. Ke2 {[%emt 0:00:04]} Ra8 {[%emt 0:00:10] White must now prevent ...Ra2.} 58. h5 {[%emt 0:00:38]} Rc2 {[%emt 0:00:08]} 59. h6 {[%emt 0:01:01]} Rh8 {[%emt 0:00:29]} 60. Rh1 {[%emt 0:00:48]} b3 {[%emt 0:00:06] Threatens to win with ...b2.} 61. g4 {[%emt 0:00:09]} Ra8 {[%emt 0:01:12]} (61... c4 $142 {( -> ...c3)} 62. dxc4 b2) 62. h7 {[%emt 0:00:45] [#]} (62. Rd1 $19 Kd7 63. g5) 62... Rxd2+ $1 {[%emt 0:00:05][%mdl 512] What a bad dream for White.  Weighted Error Value: White=0.67/Black=0.55} 0-1

[Event "8th Svetozar Gligoric Cup 2022"]
[Site "Paracin"]
[Date "2022.06.02"]
[Round "3.12"]
[White "Brankovic, Vladislav"]
[Black "Maksimovic, Boban"]
[Result "1-0"]
[ECO "B40"]
[WhiteElo "2114"]
[BlackElo "2221"]
[Annotator "TA"]
[PlyCount "63"]
[EventDate "2022.05.31"]
[EventType "team-tourn"]
[EventCountry "SRB"]
[SourceTitle "playchess.com"]
[Source "ChessBase"]
[SourceQuality "1"]
[TimeControl "40/5400+30:900+30"]

{[%evp 18,63,7,19,18,0,6,-21,-1,-25,-29,-24,-18,-40,-35,-26,119,110,124,142,99,14,103,97,364,373,366,359,310,208,170,177,600,597,644,644,29985,1001,5289,1001,930,842,29976,29977,29977,29978,29978,29979]} 1. e4 {[%emt 0:00:08]} e6 {[%emt 0:03:30]} 2. d4 {[%emt 0:01:05]} d5 {[%emt 0:00:11]} 3. Nd2 {[%emt 0:02:00]} c5 {[%emt 0:03:17]} 4. Ngf3 {[%emt 0:01:33]} cxd4 {[%emt 0:05:05]} 5. Nxd4 {[%emt 0:03:11]} Nc6 {[%emt 0:02:31]} 6. Nxc6 {[%emt 0:07:57]} bxc6 {[%emt 0:00:11]} 7. Bd3 {[%emt 0:00:15]} Nf6 {[%emt 0:07:44]} 8. O-O {[%emt 0:02:37]} Be7 {[%emt 0:11:01]} 9. b3 {[%emt 0:07:58]} O-O {[%emt 0:02:12]} 10. Bb2 {[%emt 0:00:29]} a5 {[%emt 0:00:56] B40: Sicilian: 2...e6, Unusual lines.} 11. Qe2 {[%emt 0:09:20]} a4 {[%emt 0:03:12]} 12. Rad1 {[%emt 0:05:25]} Qb6 {[%emt 0:03:49] [#] The position is equal.} 13. Nf3 $146 {[%emt 0:06:36]} ({Predecessor:} 13. Rb1 axb3 14. axb3 Ra2 15. Bc3 Ba6 16. Ra1 Bxd3 17. Qxd3 Rfa8 18. exd5 cxd5 19. Rxa2 Rxa2 {½-½ (40) Deak,S (2339)-Zetocha,C (2434) Hungary 2002}) 13... axb3 {[%emt 0:04:21]} 14. axb3 {[%emt 0:00:05]} Ra2 {[%emt 0:00:14]} 15. Bc3 {[%emt 0:04:32]} dxe4 {[%emt 0:04:16]} (15... Nxe4 {feels hotter.} 16. Bxe4 dxe4 17. Qxe4 Qc5) 16. Bxe4 {[%emt 0:00:18]} Qxb3 {[%emt 0:00:52]} (16... Nxe4 $11 17. Qxe4 Qc5) 17. Bxf6 $16 {[%emt 0:01:06]} Bxf6 {[%emt 0:45:38] [#]} 18. Bxh7+ $1 {[%emt 0:00:05][%mdl 512]} Kh8 {[%emt 0:00:00] [#]} 19. Bd3 {[%emt 0:00:13]} (19. Ne5 $1 $16 {White wants to mate with Qh5.} g6 20. Bxg6 $1 {[%mdl 512]} fxg6 21. Nxg6+ Kg7 22. Nxf8 Kxf8 23. Qe4) 19... Qa4 {[%emt 0:00:00]} (19... Qd5 $2 20. Bc4 Qa5 21. Bxa2 Qxa2 22. Rfe1 $18) (19... Qc3 $11 {keeps the balance.}) 20. Ne5 $40 {[%emt 0:05:39][%mdl 128] White has strong attack.} g6 {[%emt 0:00:00][%mdl 8192] [#] Against Qh5+. This move loses the game for Black.} (20... Qh4 $16 {was worth a try.}) 21. Bxg6 $1 $18 {[%emt 0:20:26][%mdl 512]} fxg6 {[%emt 0:00:00]} 22. Nxg6+ {[%emt 0:00:04]} Kg7 {[%emt 0:00:00]} 23. Nxf8 {[%emt 0:00:05]} Kxf8 {[%emt 0:00:00]} 24. Qf3 {[%emt 0:00:07] Inhibits Qf4.} Kg7 {[%emt 0:00:00]} (24... Ke7) 25. Qg3+ {[%emt 0:00:35]} Kh6 {[%emt 0:00:00]} 26. Qg8 {[%emt 0:01:35]} Ba6 {[%emt 0:00:00] [#]} 27. Qxe6 {[%emt 0:00:15]} (27. Rd7 $142 $1 Qxc2 28. Qf8+ Kg5 29. h4+ Kf5 30. g4+ Kxg4 31. Qxf6 Qf5 32. Rg7+ Kf3 {[#]} 33. Qd4 $1) 27... Kg6 {[%emt 0:00:00]} 28. Rd6 {[%emt 0:01:02]} (28. Qe8+ $142 Kh6 29. Qf7) 28... Qf4 {[%emt 0:00:00]} 29. Qxa2 {[%emt 0:02:48] Threatening mate with Qg8+.} Bxf1 {[%emt 0:00:00]} 30. Qg8+ {[%emt 0:00:12] White mates.} Kh6 {[%emt 0:00:00]} 31. Qh8+ {[%emt 0:00:16]} Kg6 {[%emt 0:00:00]} 32. Qxf6+ {[%emt 0:00:05] Weighted Error Value: White=0.13 (very precise) /Black=1.27} 1-0